Workbook

Sheet Details
B2: Content details
B4: Title | C4: Non-real time Hydraulic Model Review Template
B5: Audience | C5: Environment Agency, Defra
B6: Type | C6: Template
B7: Reference | C7: LIT 17617
B8: Version | C8: 6
B9: Security marking | C9: OFFICIAL
B11: CONTROLLED CONTENT

Sheet Summary
B2: NON-REAL TIME HYDRAULIC MODEL REVIEW
B4: Type of review
B6: Project | C6: Gavray Drive | E6: Job Number | F6: 68791 | G6: Required coastal standard (if applicable)
B8: Model Type | C8: 1D/2D | D8: Software | E8: FMP/TuFlow | G8: 2nd review | I8: 3rd review | K8: 4th review
B9: Revision | D9: Date | E9: July 2022 | G9: 2023-02-14
B10: Area Client | C10: THM | D10: Reviewer | G10: PW
B12: REVIEW SUMMARY/CONCLUSION
B13: Is the model suitable for intended use? | C13: 2nd Review - Currently the model is not fit for purpose, it has undergone extensive revision since the previous review but improvements still need to be made, I have summarised the main issues below: - It would be appreciated if only the files relevant to the latest model runs be included with future submissions, it is difficult and more time consuming to navigate folders when legacy/irrelevant model files have been included. - Inflow boundaries have not been applied correctly and the hydrological calculations need to be revisited. - Inflows have been incorrectly applied, showing the results of the 0.1%AEP event for the 1% scenarios. - Downstream boundary is applied incorrectly and should be moved, along with the 2D boundary. - Changes in 1D model parameters need to be justified. - Building representation doesn't appear to have been updated in the latest model submission. - Model stability should still be improved to reduce oscillations in stage during model runs, hydrographs show a plateau at the beginning which needs addressing. - With gauge data available it would be expected that this is used to calibrate the model where possible or sufficient justification for why this is not being done. ----------------------------------------------------------------------------------------------------------------------------------------------------------------------------------------------------------------------------------------- At present this model cannot be deemed fit for purpose. There is too much uncertainty in the results at the moment to say with confidence that the outputs are accurate. There are some areas of increased flood extent downstream of the planned development however this is mostly in the Q1000 scenario with very isolated increases in the Q100+CC scenarios, mostly contained to the compensatory storage onsite. If the concerns raised in this review are adequately addressed then this model should then be useable for the intended purpose. The main outstanding problems are: - Incomplete model runs provided means that the full suite of baseline and proposed scenarios cannot be compared to assess the differences. - No blockage scenario has been run on the flood relief culverts exiting the planned development site - this was done in the original model and we feel should be included here to ensure the compensatory on site storage is adequate in the event of blockage. - Some structures have been misrepresented or omitted completely and we would like clarification in the reporting along with evidence that they are not required and/or work as intended. - The underlying LiDAR and basemapping for building representation appear to be outdated, the latest available LiDAR should be used along with the latest OS mastermapping for the entire model to represent all buildings in the floodplain and to ensure accurate topography for flow routes. - Flood storage areas upstream and downstream of the planned development have not been mentioned in the reporting or represented in the modelling in the case of the upstream washland. These should be assessed for impact on results and missing structures incorporated in the model. Initial water levels should be set for the storage pond downstream to ensure it is full at the beginning of runs so that the most conservative flood extents can be presented. - The hydrology has not been updated since the original model was built in approximately 2009? This will need updating using current methodology and software to ensure accurate design flows can be used. WINFAP v2 was used to produce the original flow estimates and this has long been superseded and the most recent (v5) should now be used. - Uncertainty around site levels as the current footprint is set to 75maod which is both conservative and unrealistic, it is difficult to decide whether the site is going to be at risk without more accurate site plans. - Model stability is not great which makes it difficult to asses the accuracy of the mapped outputs, Mass balance needs addressing along with negative depths - some close to the planned development.
C14: w
B15: MODEL REVIEW PROCESS
B16: Hydraulic Model reviews are an essential component of the Hydraulic Modelling Quality Assurance (QA) process that provides confidence in a model’s suitability for its intended purpose. Evidence that the model has undergone QA may be requested by external parties and hence all reviews should be written with an expectation that they could be read externally. Should any issue(s) be raised during the review process, which require attention, the reviewer should detail the action(s) required in sufficient detail to allow the modeller to complete the changes as appropriate. Completion of this Model Review document does not automatically constitute model approval. Once the suggested changes have been completed, the reviewer may require that the model be resubmitted for further review to establish whether the actions have been completed satisfactorily. Only once all the amendments have been completed satisfactorily, will the model be approved and the quality assured by the reviewer. It is recommended that the reviewer makes good use of the fluvial design guide chapter 7 and the user manual/help guides for the appropriate modelling software. Depending on the work being reviewed some questions or entire sections may not be relevant, in which case they can be deleted. On completion of the review the reviewer may choose to use the following colour coding system to alert the modeller to the priority of the actions required (if any). Colour coding used: OK – Good practice. Minimum response: No minimum. Maximum expected response: No maximum. Planning: No Objection. Green – Consider for future studies. Negligible impact on the results that is unlikely to change the outcome of the study. Minimum response: Acknowledge the comment in the spreadsheet and update the limitation section of the report. Maximum expected response: Actions done to address the issue identified. Planning: No Objection. Note: Taking action to address issues would be expected and some issues may be addressed coincidentally by work on others. Amber – Follow recommendation. Potential impact on the results that may change the outcome of the study. Minimum response: Comments justifying the approach taken and update the limitation section of the report if not sorted. Maximum expected response: Actions done to address the issue identified. Planning: Consider objecting to the application based on comments highlighted in this category. Note: Taking action to address issues should be undertaken, some issues may be addressed coincidentally by work on others. Red – Must do. Has an impact on the results that may have a significant impact on the outcome of the study. Minimum response: Comments thoroughly justifying approach from applicant based on evidence and update the limitation section of the report if not sorted. Maximum expected response: Actions done to address the issue identified. Planning: Objection - Application to be objected if comments are highlighted in this category. Note: If no action is taken the response must clearly demonstrate why the issue raised is not relevant and the approach employed is justified backed up with evidences. If issues highlighted red are ignored, then submissions should always be sent back.

Sheet Model_Approach
A5: PROJECT BACKGROUND AND APPROACH
A7: PROJECT DESCRIPTION & REQUIREMENTS
E8: The original model for Bicester was created by Peter Brett Associates in 2009 on behalf of the EA. This was a flood risk mapping study to help the EA and Local authorities understand flood risk in the area and inform future spatial planning. Hydrock have used this exisiting model to incorporate site plans for a new residential area along Gavray Drive on the outskirts of Bicester to prove that site raising for the development does not have an adverse impact on flood levels away from the site.
A16: MODEL APPROACH & SUMMARY
A17: Item No. | B17: Item Checked | E17: RAG 1 | F17: 1st Review Comments | G17: 1st Review Actions | H17: 1st Review Response (DATE) | I17: RAG 2 | J17: 2nd Review Comments | K17: 2nd Review Response (DATE) | L17: RAG 3 | M17: 3rd Review Comments | N17: 3rd Review Response (DATE) | O17: RAG 4 | P17: 4th Review Comments | Q17: 4th Review Response (DATE)
A18: 1.1 | B18: What model approach has been adopted? Is it appropriate? (e.g. new 1D/2D build, existing model truncation, 1d only?). | E18: OK | F18: 1D/2D FMP/TUFLOW | G18: None
A19: 1.2 | B19: Software used, including versions? | E19: Green | F19: Flood Modeller Pro VER=4.6.0.6759 TUFLOW Build: 2020-01-AB-iDP-w64 | G19: Latest versions used at the time of runs (early 2021). Please ensure future runs are using the latest software versions.
A20: 1.3 | B20: Model Version Reviewed | E20: OK | F20: Bicester_012 | G20: None
A21: 1.4 | B21: Are all model files provided? | E21: Red | F21: No, some model runs did not run to completion and there are files missing as a result. 1000yr baseline(HYD) for each storm duration and 6.5hr (PROP) | G21: Please ensure all models have run to completion and that all model files check files, result files etc. are all included for review. If possible provide .shp files and all .xmdf outputs (depth, height, velocity etc.) | H21: All model files have now been provided. | I21: Amber | J21: Difficult to assess which model files are relevant to the study as too many iterations have been provided, some with failed runs so it is difficult to tell which are the final runs that are to be reviewed with this submission. Please provide only the updated model runs that are requiring review so that the review can be undertaken more efficiently and to esnure the correct model runs are being looked at.
A22: 1.5 | B22: Does the model run? | E22: OK | F22: Yes, checked the 100yr+35CC 13hr HYD PROP run. Terminated run as it would take too long to complete. | G22: None
A24: EVENTS & SCENARIOS
A25: Item No. | B25: Item Checked | E25: RAG 1 | F25: 1st Review Comments | G25: 1st Review Actions | H25: 1st Review Response (DATE) | I25: RAG 2 | J25: 2nd Review Comments | K25: 2nd Review Response (DATE) | L25: RAG 3 | M25: 3rd Review Comments | N25: 3rd Review Response (DATE) | O25: RAG 4 | P25: 4th Review Comments | Q25: 4th Review Response (DATE)
A26: 2.1 | B26: What events have been simulated (Q5, Q100, Q100CC, Q1000)? Are they sufficient to meet the project requirements? | E26: OK | F26: Q100+CC,Q1000 | G26: None | I26: Green | J26: Consider running some lower order events to improve model calibration against gauge levels. i.e. 50% AEP and 20% AEP and include the results with the next submission.
A27: 2.2 | B27: Is a development being modelled? If so are appropriate scenarios modelled to assess the impact? | E27: Red | F27: Proposed development modelled however no footprints for buildings present or finished floor levels. A master plan of the finished site has been provided which fits in with the polygons of the model however it is difficult to judge whether water levels will inundate the site without accurate finished site levels. | G27: Provide proposed site levels to determine whether the proposed area is still at flood risk. The provided polygon has been set to 75maod which is a conservative approach to site levels. The greatest flood depth in the baseline run within the proposed site area is 100mm, however when looking at the plans this is not close to the planned residential properties. | H27: Finished floor levels have now been modelled in the post development scenario. | I27: Green | J27: It would be expected that buildings be represented in the proposed scenario rather than an asc grid showing ground elevations. This would be useful to help show flood risk to individual buildings at the proposed site.
A28: 2.3 | B28: Flood Mapping scenarios? | E28: Red | F28: No defended/undefended or blockage scenarios The original model had a blockage scenario on the Gavray Drive culvert, this should be implemented on this site to ensure that the proposed compensatory storage is sufficient with a reduced outflow from the site. See screenshot for additional information. | G28: Please run blockage scenarios on the flood relief culverts running beneath Gavray Drive culvert (LA.3088) | H28: A blockage scenario has been run on the post development scenario with 100% blockage of the flood relief culvert just like the original model. | I28: Green | J28: Blockage runs have been produced and briefly discussed in the reporting. Provide maps comparing flood depths/extents of the blockage scenario.
A29: 2.4 | B29: Have climate change runs been undertaken? | E29: Green | F29: climate change runs for 35% higher allowance used. | G29: Not in line with current allowances but considered conservative for higher. | H29: The updated climate change allowance has been run. | I29: OK | J29: 15% climate change runs have been carried out which is the central allowance for the 2080 epoch.
A30: 2.5 | B30: Has a study for quantifying uncertainty been undertaken? If yes, what are the results? | E30: OK | F30: No | G30: None

Sheet 1D_Model_Build
F3: Chow roughness values
A5: 1D MODEL BUILD
A7: 1D NETWORK
A8: Item No. | B8: Item Checked | E8: RAG 1 | F8: 1st Review Comments | G8: 1st Review Actions | H8: 1st Review Response (DATE) | I8: RAG 2 | J8: 2nd Review Comments | K8: 2nd Review Response (DATE) | L8: RAG 3 | M8: 3rd Review Comments | N8: 3rd Review Response (DATE) | O8: RAG 4 | P8: 4th Review Comments | Q8: 4th Review Response (DATE)
A9: 3.1 | B9: Model overview: Node Summary 1d length | E9: OK | F9: 685 Nodes Total Length: 13.015km Open Channel: 12.007km Conduit: 1.008km | G9: None | I9: OK | J9: Model has been truncated since first review, reducing the model domain significantly and now only representing Langford Brook. 126 nodes 4.6km length 0.085km conduits
A10: 3.2 | B10: Have appropriate distances between sections and/or nodes been used (dx)? | E10: OK | F10: Yes | G10: None
A11: 3.3 | B11: Are out of bank flows represented in 1d? If so, how has it been done and is it appropriate? | E11: N/A | F11: N/A | G11: None
A12: 3.4 | B12: Is the model geo-referenced? | E12: Green | F12: Yes model geo-referenced however some nodes not appearing where they should. | G12: Can the structures not being spatially referenced correctly be addressed? | H12: Yes nodes, now appear where they should be. | I12: OK | J12: Nodes are all georeferenced correctly.
A13: 3.5 | B13: Do the cross sections and bed profiles look reasonable? | E13: Amber | F13: Cross sections have not been trimmed to channel width and incorporate the floodplain, this is problematic where bank elevations drop away and water is being misrepresented behind banks. (See screenshot) See item no.12 for additional inaccuracies with 1D cross section locations. | G13: Please trim the cross sections to the top of bank so that the floodplain can be correctly represented. Please adjust the cross section locations to the correct spatial area. | H13: Cross sections have been trimmed to top of banks. | I13: OK | J13: Cross sections match 1D channel widths.
A14: 3.6 | B14: Chainage – compared to surveyed sections | E14: OK | F14: Chainage is accurate between sections for the areas around the site of interest. | G14: None
A15: 3.7 | B15: Does conveyance look appropriate? | E15: Amber | F15: Conveyance looks okay for the modelled reach that has been observed. Structure conveyance needs addressing at node LA.3503. | G15: Please double check all cross sections and structures for acceptable conveyance and fix any issues present where possible. | H15: Conveyance has been checked. | I15: OK | J15: Conveyance looks okay for the cross sections close to the site of interest.
A16: 3.8 | B16: If gauged flow is available, is there good flow reconciliation between the statistical estimates and the modelled, for given return periods? | E16: N/A | F16: N/A | G16: None
A17: 3.9 | B17: Bank Markers. Are they used and if so, are they suitably located? | E17: OK | F17: Bank markers have been used and are suitable. | G17: None
A18: 3.1 | B18: What approach to channel roughness has been used? | E18: Amber | F18: Varying roughness values have been used with 0.06 for the banks throughout and 0.05 for the bed except for downstream of the sewage treatment works which is 0.045 | G18: Please explain the reasoning for the roughness values used within the channel and banks. There is no mention of this in the reporting for the 1D domain. | H18: Channel roughness explanation has been provided in the report. | I18: Green | J18: Channel roughness explanation provided in report. Roughness appears to be consistent with what can be seen through satellite/streetview. Sensitivity testing shows site is sensitive to roughness changes.
A19: 3.11 | B19: What manning’s n value(s) have been used for the channel? If it is 1d only what values and how have they been applied in the flood plain? | E19: Amber | F19: See above. | G19: As above | I19: OK | J19: 1D Channel roughness is 0.05 and banks are 0.06. Floodplain is modelled in 2D.
A20: 3.12 | B20: What method has been used to estimate roughness (USGS, Chow, etc. based on survey, photographs)? Are they appropriate | E20: Amber | F20: Manning's N values have been used for roughness values. | G20: The methods used to derive the roughness values, they are the same as the EA model but this does not explicitly say what the EA model used. | H20: Channel roughness explanation has been provided in the report. | I20: OK | J20: Explanation provided in the report.

Sheet 1D_Boundary_Conditions
A5: 1D BOUNDARY CONDITIONS
A7: 1D BOUNDARY CONDITIONS
A8: Item No. | B8: Item Checked | E8: RAG 1 | F8: 1st Review Comments | G8: 1st Review Actions | H8: 1st Review Response (DATE) | I8: RAG 2 | J8: 2nd Review Comments | K8: 2nd Review Response (DATE) | L8: RAG 3 | M8: 3rd Review Comments | N8: 3rd Review Response (DATE) | O8: RAG 4 | P8: 4th Review Comments | Q8: 4th Review Response (DATE)
A9: 4.1 | B9: 1d boundary model domain; is there glass walling anywhere in the modelled reaches? | E9: OK | F9: No evidence of glasswalling, 1D cross sections are full width. | G9: None
A10: 4.2 | B10: How have the inflows boundaries been applied? | E10: Red | F10: Point inflows at upstream extents and lateral inflows representing intermediary tributaries. Please provide explanation in the reporting for how these inflows have been applied and to where in the model. Also provide justification for retaining sweetening flows to back brook. Please provide more justification for the 3 storm durations being used and proof that the 6.5hr is the critical duration. The inflows for all IED's still show a 17.5hr storm duration rather than the one specified in the IED title. Please address the unusual hydrograph shapes found in some of the run scenarios (e.g. Q100+35CC 13hr) | G10: Whilst the hydrology may have been sufficient at the time of the original modelling this is no longer the case now and should be brought up to date using current methods. Please undertake a full hydrological analysis using a flood estimation report to ensure accurate hydrographs are being used for the inflows. | H10: Updated hydrological analysis has been undertaken and compared to the previous inflows. This is discussed in the report. | I10: Red | J10: See hydrological review sheet for detail. Inflow boundary has been applied at the top of the catchment as a FEHBDY. The original study provided two additional inflows within this catchment, please provide explanation for why these are no longer required. An unusual hydrograph shape can be seen throughout the model with an initial sharp rise in stage/flow before plateauing for several hours. Please investigate and amend the hydrograph so it does not have the plateauing. Additionally the model run scenarios have been set up incorrectly, the graph included hopefully illustrates the issue but the 0.1% hydrograph has been applied to the 1%CC model runs and vice versa and should be re-run so that the model runs correspond correctly.
A11: 4.3 | B11: How is the downstream boundary(s) applied? | E11: Amber | F11: A normal depth boundary has been used, derived from the reach average slope over the lower reach of Langford Brook. This is not explained sufficiently in the reporting. | G11: Please update the report to state how the DSB has been applied. | H11: This has been added to the report. | I11: Red | J11: The downstream boundary has been modified with the model truncation. The new downstream boundary has been placed in an unusual place, normally this would be placed at a control structure where possible that cannot be bypassed by out of bank flows. In this instance the DSB is bypassed in the 2D domain where HQ boundaries have been placed at the edge of the domain, to take flows out of the model. Please provide explanation for the schematisation of this DSB and why the bridge just downstream could not be used as a suitable downstream limit for the model. Sensitivity testing has been carried out for +/- 20% slope, this shows some minor difference in levels at the site of interest, have these been replicated for the 2D boundary as this is also taking flow out of the model. It is recommended that the 2D boundary is realigned with the B4100 so it is not taking flow out of the model and all flows are routed correctly through the 1D as normally flow would not be leaving the model in the place where the 2D boundary has been schematised.
A12: 4.4 | B12: If tidal - how has the boundary been derived? | E12: N/A | F12: N/A | G12: None
A13: 4.5 | B13: Have appropriate locations been chosen for the downstream model extents? | E13: Amber | F13: Downstream extent sufficiently far from the site, impact was assessed in the original model and considered to have no effect after 1km upstream. | G13: This should be updated in the reporting to state the justification for the downstream boundary and how it was decided upon. | H13: This has been added to the report. | I13: Red | J13: See item 4.3, this needs to be altered to a more suitable location, ideally where no out of bank flows are occurring and then sensitivity testing carried out again to ensure it is not affecting the site of interest.

Sheet 1D_Structures
A5: 1D STRUCTURES
A7: 1D STRUCTURES
A8: Item No. | B8: Item Checked | E8: RAG 1 | F8: 1st Review Comments | G8: 1st Review Actions | H8: 1st Review Response (DATE) | I8: RAG 2 | J8: 2nd Review Comments | K8: 2nd Review Response (DATE) | L8: RAG 3 | M8: 3rd Review Comments | N8: 3rd Review Response (DATE) | O8: RAG 4 | P8: 4th Review Comments | Q8: 4th Review Response (DATE)
A9: 5.1 | B9: Are all structures represented? If not have explanations for structures not modelled been given in the Log/report? | E9: Amber | F9: Most structures have been represented however no mention of missing structures given in reporting. Footbridge at node LA.4458 has been missed, water main pipe crossing the channel around node LA.3764. Water storage area upstream of the railway culvert at node LA.3905. | G9: Please state in the reporting why some structures have been omitted and the implications of not including this water storage area. | H9: 500 | I9: Green | J9: Water storage area upstream of the site is deemed to be in poor condition and not representing this structure formally provides a more conservative approach. No explanation for the omission of missing structure at nodes LA.3764 and LA. 4458
A10: 5.2 | B10: Are invert levels correct compared to survey data? | E10: OK | F10: Invert levels are correct for the model reach that has been checked.
A11: 5.3 | B11: Do bridges surcharge? If so has orifice flow been enabled? | E11: OK | F11: Orifice flow has been enabled.
A12: 5.4 | B12: Are there spills around the structure or over the top represented appropriately? | E12: OK | F12: Yes spills have been represented. | G12: None
A13: 5.5 | B13: If there are any movable structures have they been modelled correctly? | E13: Red | F13: Sluice used in place of bridge unit at node:LA.4474 This is to improve model stability, no mention of what effect this has on flows or whether it is still considered representative. | G13: Please provide evidence for why this has been used and how this effects low/high flows compared to a bridge unit. | H13: This has not been altered as we do not have the survey for the bridge. An explanation of this has been written in the report. | I13: OK | J13: Justification detailed in the model report, no further action required.
A14: 5.6 | B14: Structure coefficients - Have they been changed from default values? | E14: Green | F14: Weir coefficients have been changed from default however within expected range. All structure coefficients seem to be kept at default. | G14: Please reference in the report the coefficients used and why the weir coefficients are set at their values. | I14: Green | J14: Weir coefficients vary between 0.8 and 1, this is within expected ranges. Please add a statement within the report detailing the variance in weir coefficient values.

Sheet 1D_Run_Parameters
A5: 1D RUN PARAMETERS
A7: 1D RUN PARAMETERS
A8: Item No. | B8: Item Checked | E8: RAG 1 | F8: 1st Review Comments | G8: 1st Review Actions | H8: 1st Review Response (DATE) | I8: RAG 2 | J8: 2nd Review Comments | K8: 2nd Review Response (DATE) | L8: RAG 3 | M8: 3rd Review Comments | N8: 3rd Review Response (DATE) | O8: RAG 4 | P8: 4th Review Comments | Q8: 4th Review Response (DATE)
A9: 6.1 | B9: What time step has been used for the 1D model? Is it appropriate? | E9: OK | F9: 2 second | G9: None | I9: OK | J9: This model iteration uses a 1s timestep, this is half the 2D timestep and appropriate.
A10: 6.2 | B10: What initial conditions have been used? Steady state, hotstart file? | E10: OK | F10: Unsteady, warm start | G10: None
A11: 6.3 | B11: Have any of the parameters and advanced parameters been changed from the default. If so, has it been justified? | E11: Green | F11: minitr 3 maxitr 11 min/max iterations changed from default. | G11: Please justify in the reporting the reasoning behind the changes to these default parameters and use the defaults where sufficient justification cannot be provided. | I11: Amber | J11: slot depths have been modified to 2.0000m however this is not acknowledged in the reporting. Dummy coefficient has been set to 0.0001 and 0.001 for some run scenarios. Provide justification for the changes to default parameters in the reporting. Where these are legacy parameters from the EA model, investigate the effects of changing the parameters back to default and provide evidence of this.

Sheet 2D_Model_Build
F3: Chow roughness values
A5: 2D MODEL BUILD
A7: DIGITAL TERRIAN MODEL
A8: Item No. | B8: Item Checked | E8: RAG 1 | F8: 1st Review Comments | G8: 1st Review Actions | H8: 1st Review Response (DATE) | I8: RAG 2 | J8: 2nd Review Comments | K8: 2nd Review Response (DATE) | L8: RAG 3 | M8: 3rd Review Comments | N8: 3rd Review Response (DATE) | O8: RAG 4 | P8: 4th Review Comments | Q8: 4th Review Response (DATE)
A9: 7.1 | B9: Number of domains? | E9: OK | F9: 1 | G9: None | I9: OK | J9: 1 domain is used in this updated model.
A10: 7.2 | B10: Area of 2d domain/s | E10: OK | F10: 24.9km2 approx. | G10: None | I10: OK | J10: 12.8km2 after model truncation.
A11: 7.3 | B11: What dataset has been used to define the DTM elevations? LiDAR, Photogrammetric DTM? | E11: Red | F11: LiDAR has been used however source, age and resolution has not been defined in the reporting. | G11: Please update the reporting with the specific details of the LiDAR being used. If it is from the original model (2009) then this should be updated with the latest LiDAR available. | H11: Updated Lidar has been used and this has been written in the report. | I11: OK | J11: Updated LiDAR has been applied. This is 1M DTM from 2020.
A12: 7.4 | B12: What grid resolution has been used? Is it suitable to accurately represent flow paths, e.g. between buildings? | E12: OK | F12: 4M grid resolution has been used. | G12: None | I12: Green | J12: 4M resolution has been retained, could this be reduced with the smaller catchment area to improve channel representation?
A13: 7.5 | B13: Has the DTM been rotated to optimise flow route representation? | E13: OK | F13: Is not optimised for the site of interest however is inkeeping for the wider catchment model. | G13: None | I13: Green | J13: Has the DTM been rotated to improve optimisation with the Langford Brook? It may improve results to realign this to be better optimised.
A14: 7.6 | B14: Is there any obstruction to flow? | E14: Green | F14: Flow routes in the floodplain have been represented using Estry to model culverts, these have been estimated using LiDAR and photographic evidence rather than surveyed so dimensions and exact locations are best estimates. | G14: Please consider using site survey for the culverts that have been represented in the 2D to give a more accurate representation. | H14: The model has been truncated in the latest submission and this comment does not apply to the new model. | I14: Green | J14: A 1D network layer is still included in the model which represents culverts in the floodplain, these are outside of the model domain so do not affect the results but it would be best practice to remove these as these are no longer required in this model.
A15: 7.7 | B15: Has additional site specific topographic survey data been used? | E15: OK | F15: Topographic survey data for the site has been presented by additional LiDAR for the site. | G15: None
A16: 7.8 | B16: How have buildings been represented within the DTM? | E16: Red | F16: Buildings have been represented within the TMF as blocked polygons for large residential areas and individual buildings where larger commercial properties are represented. A large factory is omitted from the upstream extent of Langford brook, this could have an impact on flood extents and urbext values for the hydrology. | G16: Please ensure the most up-to-date maps have been used for the representation of buildings. | H16: This has been undertaken and is written in the report. | I16: Red | J16: Some buildings still do not appear to be represented within the latest TMF files. Please update the mapping to incorporate the missing building representation.
A17: 7.9 | B17: Are defences/embankments/bank crests accurately represented? | E17: Green | F17: Embankment defences have been represented by Z-lines and reinforced with Z-point elevations along the defence. These appear to be accurate when measured against LiDAR. Some inconsistency with use of Z-lines along embankments. | G17: Please update the reporting to include where and why z-lines have been used within the model. | H17: The model has been truncated in the latest submission and this comment does not apply to the new model. | I17: OK | J17: Okay
A18: 7.1 | B18: If post-development scenarios are required have the proposed ground levels and building been represented appropriately? | E18: Red | F18: No. Very basic footprints for the developments have been used and appear to be too inaccurate to clearly define where the desired development is planned to be sited. Proposed ground levels have not been specified in the reporting which is useful to assess whether or not the proposed site would be inundated during different scenarios. | G18: Please provide detailed proposals so that the site can be clearly assessed for flood risk. | H18: Finished floor levels have been used for the updated model and are within an asc format. This has been written in the report. | I18: Amber | J18: Thank you, it is usually expected that proposed building footprints be included as z-shape files to define invidividual objects rather than simply defining the floor levels as an ascii grid. With respects to the site lowering and ponding of water adjacent to the watercourse, what mechanisms are in place to facilitate the storage areas to empty once levels recede back into the channel?
A20: 2D ROUGHNESS
A21: Item No. | B21: Item Checked | E21: RAG | F21: 1st Review Comments | G21: 1st Review Actions | H21: 1st Review Response (DATE) | I21: RAG | J21: 2nd Review Comments | K21: 2nd Review Response (DATE) | L21: RAG | M21: 3rd Review Comments | N21: 3rd Review Response (DATE) | O21: RAG | P21: 4th Review Comments | Q21: 4th Review Response (DATE)
A22: 8 | B22: What manning’s n values have been used to define floodplain roughness? Have they been applied correctly? | E22: Amber | F22: Urban areas - 0.150 inland water - 0.030 Roads/Tracks - 0.030 Dense Vegetation - 0.090 Rail - 0.035 Other/Default - 0.050 Roughness values appear to be reasonable and have been applied correctly. | G22: Original mastermap should be updated to include any recent developments in the area. | H22: This has been done and has been written in the report. | I22: Amber | J22: Not updated in supplied model.
A23: 8.1 | B23: What methods have been used to estimate roughness? | E23: Green | F23: This is not explicitly mentioned in the reporting however this is unchanged from the original modelling. The original model used OS MasterMap to estimate roughness based on land type/usage. | G23: Please specify the roughness methodology in the reporting. | H23: This is written in the report. | I23: OK | J23: Report has been updated, no further action required.
A24: 8.2 | B24: Is the representation of different roughness areas sufficiently accurate and detailed? | E24: Amber | F24: Original EA model used OS MasterMapping to represent different roughness values, this has not been updated in this model iteration however is still mostly accurate. | G24: Use the most recent MasterMap data available to ensure floodplain roughness is as accurate as possible. | H24: This has been done and has been written in the report. | I24: Amber | J24: As previously stated, building representation needs to be updated.

Sheet 2D_Boundary_Conditions
A5: 2D BOUNDARIES
A7: 2D BOUNDARY CONDITIONS
A8: Item No. | B8: Item Checked | E8: RAG 1 | F8: 1st Review Comments | G8: 1st Review Actions | H8: 1st Review Response (DATE) | I8: RAG 2 | J8: 2nd Review Comments | K8: 2nd Review Response (DATE) | L8: RAG 3 | M8: 3rd Review Comments | N8: 3rd Review Response (DATE) | O8: RAG 4 | P8: 4th Review Comments | Q8: 4th Review Response (DATE)
A9: 9.1 | B9: Have any boundaries been used in the 2D domain? If so detail. | E9: Green | F9: Yes 2D HQ boundaries have been applied at the Southern end of the model along the downstream boundary to prevent pooling and South of the Railway embankment. There is a HQ boundary to the East of Launton Village however I am unsure what the purpose of this boundary is. (FID 453) | G9: Please explain the rationale for the implementation of the HQ boundaries. | I9: Red | J9: 2D boundary has been implemented at the downstream extent of the model domain. Two HQ boundaries have been applied however it is not clear how and why these have been schematised the way they have. It is usual for the 1D channel to be snapped to the 2D code boundary rather than the 2D boundary extend further than the 1D. Please provide justification for the choice of HQ boundary and it's location and consider changing the location and setup of this boundary to more appropriately handle flows leaving the model. See item 4.3 for further details.
A10: =A9+0.1 -> 9.2 | B10: Is the model boundary suitably large? i.e. the flood extent should not reach the boundary. | E10: Green | F10: The model boundary is large however some pooling occurs against the downstream boundary where a HQ BC layer has been applied to allow out of bank flows to exit the model. | G10: Consider changing the position of the downstream boundary so that all flows are accounted for within the channel. | I10: Red | J10: Some runs show flows interacting with the HQ boundary at the downstream extent of the model. It would be expected that flows only leave the model through the 1D boundary where possible with a suitable control on flows to keep channels in bank at the downstream location. See item 4.3 for further details.
A11: =A10+0.1 -> 9.3 | B11: Has rainfall been applied directly to the 2d model domain? | E11: N/A | F11: N/A | G11: None
A12: 9.4 | B12: Coastal - How has the wave overtopping been applied? | E12: N/A | F12: N/A | G12: None

Sheet 2D_Structures
A5: 2D STRUCTURES
A7: 2D STRUCTURES
A8: Item No. | B8: Item Checked | E8: RAG 1 | F8: 1st Review Comments | G8: 1st Review Actions | H8: 1st Review Response (DATE) | I8: RAG 2 | J8: 2nd Review Comments | K8: 2nd Review Response (DATE) | L8: RAG 3 | M8: 3rd Review Comments | N8: 3rd Review Response (DATE) | O8: RAG 4 | P8: 4th Review Comments | Q8: 4th Review Response (DATE)
A9: 10.1 | B9: Have any structures been included in the 2D domain? If so how have they been represented? | E9: Amber | F9: Culverts have been included in the 2D floodplain to represent flows under railway embankments. These are situated at the southern most extent of the model and to the South of Launton. These are represented by SX points and polylines. Some embankments have been reinforced with Z-lines/points however this is not consistent with breaks in them. | G9: Please explain why some features have been reinforced and others haven't. | H9: This does not apply for the truncated model. | I9: OK | J9: Okay, no further action required.
A10: 10.2 | B10: Are invert levels correct compared to survey data? | E10: OK | F10: No structure survey data available, position and dimensions estimated from LiDAR and aerial photography. | G10: None
A11: 10.3 | B11: How have defences been represented? Zline? If there are flood zone scenarios have the defences been excluded adequately? | E11: Red | F11: No formal defences are present in the study area. Raised embankments are represented by Zlines and points. There is a flood storage area in Langford Village however there is no mention of this in reporting. There is a flood storage washland area immediately upstream of | G11: Please update the reporting to acknowledge the flood storage area immediately downstream of the proposed site and how this has been implemented into the model. i.e. Is this storage area full at the beginning of the run scenarios? | H11: We have no data for the FSA and it is in poor condition. Therefore representing it in LiDAR is accurate and conservative. This has been explained in the report. | I11: Amber | J11: Ponds downstream of the site are represented by z shapes, some ponds have not been represented which fill with water during the run, provide justification for the omission of the pond . Provide details for how the elevations for bank full have been derived, it would appear there is still some capacity left in the ponds. Flood storage area upstream of the site remains omitted to provide a conservative approach to flood risk.
A12: 10.4 | B12: Have appropriate loss coefficients and roughness values been used? | E12: OK | F12: Set to defaults. | G12: None

Sheet 2D_Run_Parameters
A5: 2D RUN PARAMETERS
A7: INITIAL CONDITONS & OTHER RUN PARAMETERS
A8: Item No. | B8: Item Checked | E8: RAG 1 | F8: 1st Review Comments | G8: 1st Review Actions | H8: 1st Review Response (DATE) | I8: RAG 2 | J8: 2nd Review Comments | K8: 2nd Review Response (DATE) | L8: RAG 3 | M8: 3rd Review Comments | N8: 3rd Review Response (DATE) | O8: RAG 4 | P8: 4th Review Comments | Q8: 4th Review Response (DATE)
A9: 11.1 | B9: What time step has been used for the 2D model? Is it appropriate? | E9: OK | F9: 4 seconds | G9: None | I9: OK | J9: 2 second timestep has been used.
A10: 11.2 | B10: Have initial water levels been applied? Are they correct? | E10: Red | F10: No IWL commands present | G10: Are the IWL for this pond (and others) set to the LiDAR and as such have capacity to fill during each scenario run. To produce the most conservative extents these storage ponds should be full at the beginning of the runs to prevent extra storage capacity where this is none. | H10: Ponds have been represented as full via zshapes. | I10: Amber | J10: Ponds now represented through z-shapes. See item 10.3.
A11: 11.3 | B11: Are the other 2D model parameters reasonable (e.g. flooding & drying, eddy viscosity). Are they different from default? | E11: OK | F11: These look appropriate at default. | G11: None

Sheet 1D_2D_Surface_Water (hidden)
A5: 1D-2D Surface Water
A7: SURFACE WATER MODELLING
A8: Item No. | B8: Item Checked | E8: RAG 1 | F8: 1st Review Comments | G8: 1st Review Actions | H8: 1st Review Response (DATE) | I8: RAG 2 | J8: 2nd Review Comments | K8: 2nd Review Response (DATE) | L8: RAG 3 | M8: 3rd Review Comments | N8: 3rd Review Response (DATE) | O8: RAG 4 | P8: 4th Review Comments | Q8: 4th Review Response (DATE)
A9: 18.1 | B9: Check the geographical coverage of the model relative to the surface water catchment for the study. Is the model coverage sufficient for the study or project?
A10: 18.2 | B10: Have contributing areas been applied appropriately? Are the sub catchment boundaries geocoded? Do the impermeable area assumptions appear correct?
A11: 18.3 | B11: How has the surface water network been represented, is it suitably detailed?
A12: 18.4 | B12: Does the overall model connectivity match the sewer records?
A13: 18.5 | B13: How are receiving watercourses represented in the model? Is this appropriate?
A14: 18.6 | B14: Has storage compensation been applied? Is this appropriate?
A15: 18.7 | B15: Has storage compensation been applied? Is this appropriate?
A16: 18.8 | B16: Are there any backfalls in the model and do these look realistic where they exist?
A17: 18.9 | B17: Have sediment depths and roughness coefficients been applied appropriately and are they within the expected ranges?
A18: 18.1 | B18: Are all significant outfalls included in model with appropriate detail?
A19: 18.11 | B19: Are all significant storage tanks included in model with appropriate detail?
A20: 18.12 | B20: Are all significant pumping stations included in the model with appropriate detail?
A21: 18.13 | B21: Has any infrastructure been omitted from the model network? If so what is the justification for this this? Is this appropriate?
A22: 18.15 | B22: Is the runoff model appropriate and have the parameters been applied correctly?
A23: 18.16 | B23: How has the design rainfall been generated and applied? Is this appropriate?

Sheet Coastal_boundary (hidden)
A5: FORCING PARAMETERS AND JOINT PROBABILITY INCLUDING FOR WAVE TRANSFORMATION MODELLING
A7: PARAMETERS AND JOINT PROBABILITY
A8: Item No. | B8: Item Checked | E8: RAG 1 | F8: 1st Review Comments | G8: 1st Review Actions | H8: 1st Review Response (DATE) | I8: RAG 2 | J8: 2nd Review Comments | K8: 2nd Review Response (DATE) | L8: RAG 3 | M8: 3rd Review Comments | N8: 3rd Review Response (DATE) | O8: RAG 4 | P8: 4th Review Comments | Q8: 4th Review Response (DATE)
A9: 19.1 | B9: Does the approach utilised conform with best practice guidance?
A10: =A9+0.1 -> 19.2 | B10: Inclusion of up to date data, such as Hindcast?
A11: =A10+0.1 -> 19.3 | B11: Creation of tidal curve created using appropriate source data?
A12: =A11+0.1 -> 19.4 | B12: What Joint Probability method has been used (Defra 2005 or Multivariate) is this suitable for the study?
A13: =A12+0.1 -> 19.5 | B13: Has the Coast Flood Boundary data (CFB) been applied appropriately within the models?
A14: =A13+0.1 -> 19.6 | B14: Has climate change been accounted for appropriately?

Sheet Wave_Transformation (hidden)
A5: COASTAL WAVE TRANSFORMATION MODELLING
A7: MODEL CHOICE
A8: Item No. | B8: Item Checked | E8: RAG 1 | F8: 1st Review Comments | G8: 1st Review Actions | H8: 1st Review Response (DATE) | I8: RAG 2 | J8: 2nd Review Comments | K8: 2nd Review Response (DATE) | L8: RAG 3 | M8: 3rd Review Comments | N8: 3rd Review Response (DATE) | O8: RAG 4 | P8: 4th Review Comments | Q8: 4th Review Response (DATE)
A9: 20.1 | B9: Does the model fit the brief? (Phase averaging/ phase resolving, stationary / non-stationary)
A10: DOMAIN
A11: =A9+0.1 -> 20.2 | B11: Does the boundary cover offshore waves from all relevant directions?
A12: =A11+0.1 -> 20.3 | B12: Does the coastline file represent the coastline to a high enough resolution for the modelling required?
A13: =A12+0.1 -> 20.4 | B13: Are all required output locations offshore of the chosen coastline?
A14: =A13+0.1 -> 20.5 | B14: Does the model extend far enough offshore that computational error close to the model boundary will not effect the required results?
A15: =A14+0.1 -> 20.6 | B15: Does the model domain extend far enough offshore so that wave boundary conditions are accurate for the model boundary?
A16: =A15+0.1 -> 20.7 | B16: Does the model converge to a reasonable amount in the area of interest?
A17: ACTIVE/INACTIVE BOUNDARIES
A18: =A16+0.1 -> 20.8 | B18: Are ocean and land boundaries set?
A19: =A18+0.1 -> 20.9 | B19: Is the spectral shape to be applied to the ocean boundary appropriate given the geographic location and the boundary conditions available?
A20: BATHYMETRY
A21: =A19+0.1 -> 21 | B21: Is the input bathymetry of a high enough resolution for the resolution required?
A22: =A21+0.1 -> 21.1 | B22: Are bathymetry data available for areas which may dry out at low tide?
A23: =A22+0.1 -> 21.2 | B23: Are boundaries between different bathymetry datasets smooth?
A24: 21.3 | B24: Does the model mesh/grid represent the input bathymetry well?
A25: 21.4 | B25: Are bathymetric features elsewhere within the model domain well represented if they are expected to alter wave propagation (e.g. Offshore sand banks)?
A26: WATER LEVEL
A27: =A25+0.1 -> 21.5 | B27: If the model water level has been set constant across the model domain is this a realistic assumption given the tidal behaviour across the model domain?
A28: =A27+0.1 -> 21.6 | B28: For non-stationary models has the underlying tide / surge behaviour been taken into consideration? If not is it justifiable?
A29: WIND FIELD
A30: =A28+0.1 -> 21.7 | B30: If model wind speed and direction has been set constant across the model domain is this realistic?
A31: =A30+0.1 -> 21.8 | B31: Are there any datasets available which could be used to construct a spatially varying wind field?
A32: =A31+0.1 -> 21.9 | B32: For non-stationary models has an appropriate data set been identified to cover the required model period?
A33: WAVE BOUNDARY CONDITIONS
A34: =A32+0.1 -> 22 | B34: If modelled, wave boundary conditions should come from the same model data source as wind data otherwise there may be inconsistency between the two.
A35: =A34+0.1 -> 22.1 | B35: Is enough information available to generate a wave spectrum?
A36: =A35+0.1 -> 22.2 | B36: For non-stationary models has an appropriate dataset been identified to cover the required model time period?
A37: OUTPUT REQUIREMENTS
A38: =A36+0.1 -> 22.3 | B38: Model behaviour checked through output of Hs, Tp, Mdir fields for entire model domain.
A39: =A38+0.1 -> 22.4 | B39: Water depth at output points checked against real depth (interpolation / lower resolution may result in differing water depth which in shallow water can result in significant change to wave height).
A40: RESULTS
A41: =A39+0.1 -> 22.5 | B41: Do errors at the model boundary disappear further into the model domain?
A42: =A41+0.1 -> 22.6 | B42: Does wind growth occur as expected given the fetch length across the model?
A43: =A42+0.1 -> 22.7 | B43: Are changes in wave period easily explained?
A44: 22.8 | B44: Is the output wave height within the expected range?
A45: CALIBRATION
A46: =A44+0.1 -> 22.9 | B46: Has the model been calibrated against appropriate quality controlled measured data?
A47: =A46+0.1 -> 23 | B47: Do the locations of the calibration data allow calibration close to the required output locations?
A48: VALIDATION
A49: =A47+0.1 -> 23.1 | B49: Has the model been validated against appropriate data independent from the calibration process?
A50: SENSITIVITY TESTING
A51: =A49+0.1 -> 23.2 | B51: Have sensitivity runs been performed in order to test the sensitivity of the model at the output locations to reasonable variations in the model forcing data (for all boundary parameters)?
A52: STABILITY AND CONVERGENCE
A53: =A51+0.1 -> 23.3 | B53: Have the number of iterations been modified away from the default and is this appropriate?
A54: =A53+0.1 -> 23.4 | B54: Has the model achieved the appropriate levels of convergence?

Sheet Wave_Overtopping (hidden)
A5: WAVE OVERTOPPING
A7: GENERAL CONSIDERATIONS
A8: Item No. | B8: Item Checked | E8: RAG 1 | F8: 1st Review Comments | G8: 1st Review Actions | H8: 1st Review Response (DATE) | I8: RAG 2 | J8: 2nd Review Comments | K8: 2nd Review Response (DATE) | L8: RAG 3 | M8: 3rd Review Comments | N8: 3rd Review Response (DATE) | O8: RAG 4 | P8: 4th Review Comments | Q8: 4th Review Response (DATE)
A9: 21.1 | B9: What is the source of data used?
A10: =A9+0.1 -> 21.2 | B10: What level of calibration (where data exists) has been achieved?
A11: =A10+0.1 -> 21.3 | B11: How appropriate are any assumptions?
A12: DEFENCE CONCEPTUALISATION
A13: =A11+0.1 -> 21.4 | B13: Is it the appropriate resolution?
A14: =A13+0.1 -> 21.5 | B14: Are any key low crest levels missed out?
A15: =A14+0.1 -> 21.6 | B15: Have the correct crest, toe and slope been used in terms of Neural Network constraints?
A16: =A15+0.1 -> 21.7 | B16: Comparison/check against beach profile, AIMS, defence survey, LIDAR and any other data used for schematising.
A17: EUROTOP APPLICATION
A18: =A16+0.1 -> 21.8 | B18: Have correct values been input?
A19: =A18+0.1 -> 21.9 | B19: Have the calculations been used within their applicable range?
A20: =A19+0.1 -> 22 | B20: How has overtopping been considered when the still water levels rise near the crest/ just above the crest?

Sheet Linked_1D_2D
A5: 1D/2D MODEL LINKS
A7: MODEL LINKS
A8: Item No. | B8: Item Checked | E8: RAG 1 | F8: 1st Review Comments | G8: 1st Review Actions | H8: 1st Review Response (DATE) | I8: RAG 2 | J8: 2nd Review Comments | K8: 2nd Review Response (DATE) | L8: RAG 3 | M8: 3rd Review Comments | N8: 3rd Review Response (DATE) | O8: RAG 4 | P8: 4th Review Comments | Q8: 4th Review Response (DATE)
A9: 12.1 | B9: How have the 1D/2D models been coupled, is it appropriate? | E9: Green | F9: Coupling using HX and CN lines to transfer flows from 1D to 2D. "2d_bc_Z_HX_Bicester_extended_014". Some areas of the model aren't represented correctly when checked against LiDAR. The channel cross sections have not been trimmed which is incorrectly representing volumes when the stage rises. | G9: The two examples below are away from the site of interest and should not be having an adverse effect on flood extents in the area. It would be in line with best practice to fix these discrepancies to ensure accurate model outputs however not deemed critical for this development. | I9: OK | J9: 1D/2D boundaries have been trimmed and the mis represented areas of the model are no longer present in this truncated section.
A10: 12.2 | B10: Is the digitisation of the links acceptable? | E10: Amber | F10: Some parts of the channel are being activated due to the 4M grid used along the narrow channel reaches. This is close to the downstream extent of the model and may be causing some of the stability issues. | G10: Please consider adjusting the HX lines so that the 1D-2D interactions are represented properly. | H10: This has been updated for the truncated model. | I10: Amber | J10: See item 7.4, it would be preferable to lower the grid resolution if possible to improve channel representation with less 1D-2D interaction which could improve model stability. See screenshot for example of flows exiting 1D and reentering due to code layer not being aligned with the DTM.
A11: 12.3 | B11: Is the 2d representation of the river channel comparable in width with the 1d model cross sections? | E11: Amber | F11: No, a few spot checks in and around the site of interest show varying channel widths in the 2D however the 1D channels are much smaller. E.g. LA3272has a width of 27m and 19m in the 2D vs 1D. These may be a result of the grid resolution used however this should be checked for accuracy by the modeller. | G11: Please fix these channel width discrepancies between the 1D and 2D models. | H11: This has been updated for the truncated model. | I11: OK | J11: Channel widths have been improved with this model.
A12: 12.4 | B12: Representation of 1D output in 2D domain | E12: Green | F12: WLL have been applied however see other comments around trimming of 1D cross sections to top of bank. | G12: See comments on 1D cross sections,
A13: 12.5 | B13: Have any default link parameters been changed (i.e. to improve stability)? | E13: OK | F13: Default parameters have been used. | G13: None | I13: Green | J13: Double Precision has been enabled and synchronising of HPC timestep however HPC is not used in this model. Provide explanation for why sychronise HPC timestep is selected.

Sheet Model_Stability
A5: MODEL STABILITY
A7: 1D MODEL STABILITY
A8: Item No. | B8: Item Checked | E8: RAG 1 | F8: 1st Review Comments | G8: 1st Review Actions | H8: 1st Review Response (DATE) | I8: RAG 2 | J8: 2nd Review Comments | K8: 2nd Review Response (DATE) | L8: RAG 3 | M8: 3rd Review Comments | N8: 3rd Review Response (DATE) | O8: RAG 4 | P8: 4th Review Comments | Q8: 4th Review Response (DATE)
A9: 13.1 | B9: Errors/Comments/Warnings? | E9: Amber | F9: ***Warning W2302, W2229, W2044, W2010, W2206, W2204, W2058, W2019, W2302*** | G9: Please address these warnings to improve the model stability. | H9: These have been reduced and an explanation of the warnings that remain are written in the report. | I9: OK | J9: Warnings/comments have been reviewed and removed where possible, remaining ones have been justified in the report with no effect on model results.
A10: 13.2 | B10: Convergence | E10: Red | F10: Poor model convergence is observed from peak flows onwards with 8.41% of the 100yr+CC simulation being unconverged. Mass balance is outside of the tolerable limits at 2.71%. | G10: Please investigate the underlying stability issues to improve the model convergence, there appears to be particular problems around the downstream extent of the model. | H10: The new model indicates good model convergence. | I10: Amber | J10: Model convergence has been improved however there is still significant convergence, this is not above the threshold. Consider investigating what is causing these stability issues, it is apparent when viewing the animation of cross sections that there is frequent stage changes which is unrealistic and makes it difficult to judge.
A11: 13.3 | B11: Does a basic check of animations and graphed outputs give an indication of good model stability? | E11: Red | F11: No, long section animations show poor model stability with frequent level changes occurring close to the downstream boundary and throughout the lower sections of the model. Graphed outputs included below show time series plots for GB_6417 and LA2930 respectively. | G11: Please address the underlying issues causing instabilities with the model outputs. | H11: The new model indicates good model stability. | I11: Red | J11: There is still significant oscillation in the stage and flow when viewed through cross section animation, this is due to underlying stability issues which makes it difficult to determine whether the modelled peaks are representative. Time series data backs this up with fluctuations visible in the flow/stage graphs. There is also an usual period at the beginning of the run where flow/stage initially increase before plateauing and then increasing again which needs investigating and fixing. Please investigate the underlying issues that are causing oscillation of flow/stage throughout the model runs.
A13: 2D MODEL STABILITY
A14: Item No. | B14: Item Checked | E14: RAG 1 | F14: 1st Review Comments | G14: 1st Review Actions | H14: 1st Review Response (DATE) | I14: RAG 2 | J14: 2nd Review Comments | K14: 2nd Review Response (DATE) | L14: RAG 3 | M14: 3rd Review Comments | N14: 3rd Review Response (DATE) | O14: RAG 4 | P14: 4th Review Comments | Q14: 4th Review Response (DATE)
A15: 14.1 | B15: Is mass balance within tolerable limits? | E15: Red | F15: Mass balance was outside the tolerable limits for all baseline and proposed model runs. Please see image below for example. From Fluvial Modelling Standards: The Environment Agency’s Minimum Technical Requirements for Modelling (MTRM) specifies that models should “be numerically stable with mass balance errors of <±1%. If this is not achievable, supporting information should be included” | G15: Please lower the mass balance to within -/+1% across all runs. | H15: The new model indicates mass balance of +/-0.3%. This is written in the report. | I15: OK | J15: Mass balance is now within +/- 1%.
A16: 14.2 | B16: Are CE and dV values relatively stable and remain so once the run has got going. | E16: Amber | F16: dVol is okay up until the 20hr mark where it becomes more unstable with frequent volume changes. | G16: Addressing the other stability issues should fix the sharp dVol changes seen in the below graphed output | H16: Dvol is smooth in the new model runs. See the model report for an example. | I16: OK | J16: dVol has been checked and is acceptable throughout the provided model runs.
A17: 14.3 | B17: Errors/Comments/Warnings? | E17: Amber | F17: CHECK 2078 - End of 3D HX breakline is dangling. WARNING 1317 - WLL does not cross (2 point WLL only) or snap to 1D channel CHECK 2099 - Ignored repeat application of boundary to 2D cell. WARNING 2118 - Lowered SX ZC Zpt by 0.41m to 1D node bed level. CHECK 2118 - Lowered SX ZC Zpt by 0.26m to 1D node bed level. | G17: Please acknowledge and fix the warnnings/checks where possible. | H17: These have been reduced and an explanation of the warnings that remain are written in the report. | I17: OK | J17: Justification supplied in the report and warnings reduced.
A18: 14.4 | B18: Negative Depths | E18: Red | F18: There are 4 negative depths found in the 1000yr and 2 in the 100yr+CC. | G18: Please find the cause of these negative depths and fix the problems causing them. | H18: There are no negative depths in the new truncated model. | I18: OK | J18: No negative depths in the new model runs, no further action required.
A19: 14.5 | B19: Does a basic check of animations and graphed outputs give an indication of good model stability? | E19: Amber | F19: Some instability in flows can be seen through animation of 2D files. Flows behave as they should constricting behind structures and following elevation changes. | G19: Fixing the inherent stability problems should improve the modelled flow animations within the floodplain. | H19: Animations show good model stability. | I19: Amber | J19: Some issues with flows exiting the 1D channel unexpectedly due to the location of the code layer spilling flows into the 2D. See comment 12.2 with corresponding screenshot.
A20: 14.6 | B20: 2d extents and outputs | E20: Amber | F20: Flood extents and depths follow a logical trend between return periods. There is some increase in flood extent around the water treatment plant especially in the 1000yr scenario, this may be down to model instabilties in this area but should be investigated further. | G20: Please investigate instability in modelling outputs to see whether this is influencing flooding extents. | H20: Extents show good model stability. | I20: Red | J20: Extents do not show as expected due to the wrong hydrographs being applied to the IED files meaning the 0.1% event has a lower extent than the 1%CC event. See item 4.2

Sheet Model_Sensitivity
A5: MODEL SENSITIVITY
A7: SENSITIVITY TESTING & UNCERTAINTY
A8: Item No. | B8: Item Checked | E8: RAG 1 | F8: 1st Review Comments | G8: 1st Review Actions | H8: 1st Review Response (DATE) | I8: RAG 2 | J8: 2nd Review Comments | K8: 2nd Review Response (DATE) | L8: RAG 3 | M8: 3rd Review Comments | N8: 3rd Review Response (DATE) | O8: RAG 4 | P8: 4th Review Comments | Q8: 4th Review Response (DATE)
A9: 16.1 | B9: Have appropriate model parameters been chosen for sensitivity testing? Typical tests include:  Sensitivity to roughness ± 20% ( Manning's "n" both in 1D and 2D) Sensitivity to flows ± 20% (From central estimate)  Sensitivity to downstream boundary  Key structure blockage(s) | E9: Amber | F9: No sensitivity testing has been carried out for this submission. Senstivity tests were carried out on the original model which show that the model was not particularly sensitive to changes to DSB however roughness and flow showed a reasonable amount of sensitivity to parameter changes. Blockage scenarios were sensitivity tested and showed a reasonable difference between parameter changes. | G9: Sensitivity tests should be carried out to ensure that the changes made to other aspects of the modelling do not have unexpected results and to improve confidence in the outputs of the model. | H9: Sensitivity tests have been undertaken and the results are discussed in the report. | I9: Amber | J9: All requested sensitivity tests have been carried out and results discussed in the report. Please redo the sensitivity testing using the correct hydrographs to show the effects of this.
A10: 16.2 | B10: Do the results of the tests show the models to be particularly sensitive to certain parameters? | E10: N/A | F10: - | G10: - | I10: Green | J10: Results show the model to be sensitive to roughness parameter changes with a change of +/-47mm, blockage scenario shows increased flood extents and depths across the site of interest with roughly 15mm flood depth. Downstream boundary indicates a change of around 1-3mm in channel depth. Please update the report once sensitivity testing has been rerun using the correct hydrographs for the run scenarios.
A11: 16.3 | B11: Have confidence limits for model results (+/- mm) been presented? How were they derived and does this seem sensible? | E11: N/A | F11: - | G11: - | I11: Green | J11: Provide confidence limits from the results of the sensitivity testing.

Sheet Model_Outputs_Calibration
A5: MODEL OUTPUTS & CALIBRATION
A7: CALIBRATION/VERIFICATION
A8: Item No. | B8: Item Checked | E8: RAG 1 | F8: 1st Review Comments | G8: 1st Review Actions | H8: 1st Review Response (DATE) | I8: RAG 2 | J8: 2nd Review Comments | K8: 2nd Review Response (DATE) | L8: RAG 3 | M8: 3rd Review Comments | N8: 3rd Review Response (DATE) | O8: RAG 4 | P8: 4th Review Comments | Q8: 4th Review Response (DATE)
A9: 15.1 | B9: Have calibration runs been completed? Is data for calibration available? Gauge data, extents, anecdotal etc. | E9: Green | F9: No calibration runs have been undertaken. The original model was calibrated against spot gauge data at the LA3070 node. The hydrographs from this submission have been compared to the calibrated ones and show a satisfactory fit. | G9: It is recommended to carry out calibration runs to ensure the model is as accurate as possible, there is a level gauge just down stream from the site of interest, | I9: Amber | J9: Level gauge data is available at Langford Brook Village, flows have not been adequately calibrated against this. More detail can be found in the hydrology review and previous study for how the gauge data has been used to calibrate the hydraulic model for improved accuracy.
A10: 15.2 | B10: Are the simulated hydrograph peaks reasonably similar to the recorded peaks? | E10: N/A | F10: N/A | G10: N/A
A11: 15.3 | B11: Is the shape of the simulated hydrograph and therefore the volume suitably similar? | E11: N/A | F11: N/A | G11: N/A
A12: 15.4 | B12: Are simulated floodplain extents similar to recorded extents? Are flow routes similar? | E12: N/A | F12: N/A | G12: N/A
A13: 15.5 | B13: Has suitable effort been made to attempt and improve calibration. Have attempted changes been documented with a quantification of impact? | E13: N/A | F13: N/A | G13: N/A
A14: 15.6 | B14: If no historic data is available, are the simulated flood outputs similar or very different from past modelling in the area? If there is a large difference, does it seem sensible? | E14: N/A | F14: N/A | G14: N/A | I14: Amber | J14: Previous modelling outputs shown a significant increase in extents and outputs compared to the current study. The calibration that was carried out using hydrometric data in the previous study should be applied to this study where applicable to improve model performance.

Sheet Audit_Trail
A5: AUDIT TRAIL
A7: AUDIT TRAIL
A8: Item No. | B8: Item Checked | E8: RAG 1 | F8: 1st Review Comments | G8: 1st Review Actions | H8: 1st Review Response (DATE) | I8: RAG 2 | J8: 2nd Review Comments | K8: 2nd Review Response (DATE) | L8: RAG 3 | M8: 3rd Review Comments | N8: 3rd Review Response (DATE) | O8: RAG 4 | P8: 4th Review Comments | Q8: 4th Review Response (DATE)
A9: 17.1 | B9: Was a model run log provided? | E9: Amber | F9: No. | G9: Please provide a model log to make it easier to see what runs have been used and for which scenarios. | H9: A model log has now been provided. | I9: OK | J9: Thank you.
A10: 17.2 | B10: Was a suitable file naming, structure & management system used? | E10: Green | F10: Naming conventions/version files were slightly confusing with "HYD/HYD PROP" being the applicant's submissions however other files still included? There were also multiple storm duration runs however no explanation as to why, a critical storm duration should have been chosen and only this one submitted or more explanation in the reporting as to why all three have been included. | G10: Please ensure naming conventions are easy to distinguish and that the reporting explains/justifies the naming and inclusion of all files. | I10: Green | J10: Naming conventions could still be improved to remove legacy naming where they are no longer relevant.
A11: 17.3 | B11: Were check files provided? | E11: Amber | F11: Yes some have been provided, other files are missing possibly due to runs not completing. | G11: Please provide all model check files for each run scenario. | H11: Check files are provided. | I11: OK | J11: All check files are provided for the model runs.
A12: 17.4 | B12: Were comments provided within the model? | E12: OK | F12: Comments retained from original model. | G12: None
A13: 17.5 | B13: Was there good version control? Is the model history detailed where applicable? | E13: Green | F13: Versions were mostly satisfactory with some excess files which had been superseded. | G13: If files have been superseded then do not include them for review. | I13: Green | J13: Version control could be improved and when submitting model files to review please only include the runs that need reviewing as there are a lot of legacy files present in this submission making the review process more difficult to determine which files are relevant to this.
A14: 17.6 | B14: Were Errors / comments / warnings made available? | E14: OK | F14: Yes. | G14: None
A15: 17.7 | B15: Was a technical overview of the model and its background provided | E15: Red | F15: Technical note provided however inadequate detail on model history and decision making. | G15: Please improve the technical note to show proposed site plans and how the original model has been built along with all decision making relating to changes made to the model. | H15: The technical note has been updated to include the changes made. | I15: Green | J15: Model technical note has been updated to include the changes made, ensure further justification and any new changes are logged in the reporting with supporting evidence where applicable.
A16: 17.8 | B16: Were notes on how the model operates under different flow conditions provided? | E16: Amber | F16: Not enough detail on comparisons between different return periods and peak flows/volumes. | G16: Please update the report to include flood risk comparisons for the different run scenarios and conclusions derived from the model results. | H16: This has been updated in the report. | I16: Amber | J16: Provide updated results once scenarios have been run with the correct hydrographs to give realistic outputs. It would appear the sensitivity testing has been run with the 0.1% hydrograph which may change the results of the sensitivity tests once they are run with the correct flood estimates.
A17: 17.9 | B17: Was an explicit statement of any concerns about the accuracy of the model or its ability to represent reality provided? | E17: Amber | F17: Stated that the original model was deemed fit for purpose. At present this model shows stability problems and needs updating with current data/methods to make it representative of the current catchment. | G17: The original model was created >10 years ago and it is the responsibility of the applicant to ensure it is still up-to-date with current best practices and sense checked for satisfactory outputs. | H17: This analysis has been undertaken. | I17: Amber | J17: As with the hydrology review, the calculations need revising to better incorporate the hydrometric data available and then calibration of the model to improve confidence in model outputs.
A18: 18 | B18: Is there anything else missing or are there suggestions for additional information or clarification? | E18: Red | F18: Some model runs have not been completed, these will need submitting along with updates throughout the model. A full site plan with proposed finished levels would be useful to determine the flood risk to the proposed residential areas. | G18: Please ensure all information necessary for the review is included. All model outputs should be included with the reporting, it is noted that some runs lack certain results files and check files. | H18: All information has been provided. | I18: Amber | J18: Suggested areas that need addressing before the model can be considered fit for purpose are detailed in this review sheet.
A19: 18.1 | B19: Comment on the quality of the reports: | E19: Red | F19: Overall quality of the reporting is that it lacks detail relying on the original reporting for much of the models detail. The report should justify all decisions being made and detail how the modelling has been applied. | G19: Please improve the technical detail of the reporting incorporating the advise/requests given within this review and report on all the changes that are being made and justify why changes are not needed where applicable. | H19: The report has been updated to address all of the concerns in this review | I19: Amber | J19: Greater detail in the reporting is required, for example where sensitivity testing has been carried out a detailed analysis of the results with confidence limits and graphs/gridded outputs to illustrate the difference with clear statements on how the model has been schematised and the decision making taken for how the model has been setup after being truncated is advised.
A20: 18.2 | B20: is a freeboard analysis necessary? If yes have you review the report? What are is the agreed freeboard? | E20: Amber | F20: No detailed site plans provided to check freeboard. | G20: Provide detailed site plans. | H20: An asc file of the proposed development has been provided. | I20: Amber | J20: Provide proposed site with buildings represented via z shapes to give more detail around different roughness values and where the buildings are to be located compared to flood extents.

Sheet Additional Info.
A5: Additional information
A7: Additional information
A8: Item No. | B8: Item Checked | E8: RAG 1 | F8: 1st Review Comments | G8: 1st Review Actions | H8: 1st Review Response (DATE) | I8: RAG 2 | J8: 2nd Review Comments | K8: 2nd Review Response (DATE) | L8: RAG 3 | M8: 3rd Review Comments | N8: 3rd Review Response (DATE) | O8: RAG 4 | P8: 4th Review Comments | Q8: 4th Review Response (DATE)
A9: 100.1
A10: 100.2
A11: 100.3
A12: 100.4
A13: 100.5
A14: 100.6
A15: 100.7
A16: 100.8
A17: 100.9
A18: 101

Sheet Roughness Values
B1: Return to 1D model build
B2: Return to 2D model build
B3: Manning's n for Channels (Chow, 1959).
B4: Type of Channel and Description | C4: Minimum | D4: Normal | E4: Maximum
B5: Natural streams - minor streams (top width at floodstage < 100 ft)
B6: 1. Main Channels
B7: a. clean, straight, full stage, no rifts or deep pools | C7: 0.025 | D7: 0.03 | E7: 0.033
B8: b. same as above, but more stones and weeds | C8: 0.03 | D8: 0.035 | E8: 0.04
B9: c. clean, winding, some pools and shoals | C9: 0.033 | D9: 0.04 | E9: 0.045
B10: d. same as above, but some weeds and stones | C10: 0.035 | D10: 0.045 | E10: 0.05
B11: e. same as above, lower stages, more ineffective | C11: 0.04 | D11: 0.048 | E11: 0.055
B12: slopes and sections
B13: f. same as "d" with more stones | C13: 0.045 | D13: 0.05 | E13: 0.06
B14: Chainage – compared to surveyed sections | C14: 0.05 | D14: 0.07 | E14: 0.08
B15: h. very weedy reaches, deep pools, or floodways | C15: 0.075 | D15: 0.1 | E15: 0.15
B16: with heavy stand of timber and underbrush
B17: 2. Mountain streams, no vegetation in channel, banks usually steep, trees and brush along banks submerged at high stages
B18: a. bottom: gravels, cobbles, and few boulders | C18: 0.03 | D18: 0.04 | E18: 0.05
B19: b. bottom: cobbles with large boulders | C19: 0.04 | D19: 0.05 | E19: 0.07
B20: 3. Floodplains
B21: a. Pasture, no brush
B22: 1.short grass | C22: 0.025 | D22: 0.03 | E22: 0.035
B23: 2. high grass | C23: 0.03 | D23: 0.035 | E23: 0.05
B24: b. Cultivated areas
B25: 1. no crop | C25: 0.02 | D25: 0.03 | E25: 0.04
B26: 2. mature row crops | C26: 0.025 | D26: 0.035 | E26: 0.045
B27: 3. mature field crops | C27: 0.03 | D27: 0.04 | E27: 0.05
B28: c. Brush
B29: 1. scattered brush, heavy weeds | C29: 0.035 | D29: 0.05 | E29: 0.07
B30: 2. light brush and trees, in winter | C30: 0.035 | D30: 0.05 | E30: 0.06
B31: 3. light brush and trees, in summer | C31: 0.04 | D31: 0.06 | E31: 0.08
B32: 4. medium to dense brush, in winter | C32: 0.045 | D32: 0.07 | E32: 0.11
B33: 5. medium to dense brush, in summer | C33: 0.07 | D33: 0.1 | E33: 0.16
B34: d. Trees
B35: 1. dense willows, summer, straight | C35: 0.11 | D35: 0.15 | E35: 0.2
B36: 2. cleared land with tree stumps, no sprouts | C36: 0.03 | D36: 0.04 | E36: 0.05
B37: 3. same as above, but with heavy growth of sprouts | C37: 0.05 | D37: 0.06 | E37: 0.08
B38: 4. heavy stand of timber, a few down trees, little | C38: 0.08 | D38: 0.1 | E38: 0.12
B39: undergrowth, flood stage below branches
B40: 5. same as 4. with flood stage reaching branches | C40: 0.1 | D40: 0.12 | E40: 0.16
B41: 4. Excavated or Dredged Channels
B42: a. Earth, straight, and uniform
B43: 1. clean, recently completed | C43: 0.016 | D43: 0.018 | E43: 0.02
B44: 2. clean, after weathering | C44: 0.018 | D44: 0.022 | E44: 0.025
B45: 3. gravel, uniform section, clean | C45: 0.022 | D45: 0.025 | E45: 0.03
B46: 4. with short grass, few weeds | C46: 0.022 | D46: 0.027 | E46: 0.033
B47: b. Earth winding and sluggish
B48: 1. no vegetation | C48: 0.023 | D48: 0.025 | E48: 0.03
B49: 2. grass, some weeds | C49: 0.025 | D49: 0.03 | E49: 0.033
B50: 3. dense weeds or aquatic plants in deep channels | C50: 0.03 | D50: 0.035 | E50: 0.04
B51: 4. earth bottom and rubble sides | C51: 0.028 | D51: 0.03 | E51: 0.035
B52: 5. stony bottom and weedy banks | C52: 0.025 | D52: 0.035 | E52: 0.04
B53: 6. cobble bottom and clean sides | C53: 0.03 | D53: 0.04 | E53: 0.05
B54: c. Dragline-excavated or dredged
B55: 1. no vegetation | C55: 0.025 | D55: 0.028 | E55: 0.033
B56: 2. light brush on banks | C56: 0.035 | D56: 0.05 | E56: 0.06
B57: d. Rock cuts
B58: 1. smooth and uniform | C58: 0.025 | D58: 0.035 | E58: 0.04
B59: 2. jagged and irregular | C59: 0.035 | D59: 0.04 | E59: 0.05
B60: e. Channels not maintained, weeds and brush uncut
B61: 1. dense weeds, high as flow depth | C61: 0.05 | D61: 0.08 | E61: 0.12
B62: 2. clean bottom, brush on sides | C62: 0.04 | D62: 0.05 | E62: 0.08
B63: 3. same as above, highest stage of flow | C63: 0.045 | D63: 0.07 | E63: 0.11
B64: 4. dense brush, high stage | C64: 0.08 | D64: 0.1 | E64: 0.14
B65: 5. Lined or Constructed Channels
B66: a. Cement
B67: 1. neat surface | C67: 0.01 | D67: 0.011 | E67: 0.013
B68: 2. mortar | C68: 0.011 | D68: 0.013 | E68: 0.015
B69: b. Wood
B70: 1. planed, untreated | C70: 0.01 | D70: 0.012 | E70: 0.014
B71: 2. planed, creosoted | C71: 0.011 | D71: 0.012 | E71: 0.015
B72: 3. unplanned | C72: 0.011 | D72: 0.013 | E72: 0.015
B73: 4. plank with battens | C73: 0.012 | D73: 0.015 | E73: 0.018
B74: 5. lined with roofing paper | C74: 0.01 | D74: 0.014 | E74: 0.017
B75: c. Concrete
B76: 1. trowel finish | C76: 0.011 | D76: 0.013 | E76: 0.015
B77: 2. float finish | C77: 0.013 | D77: 0.015 | E77: 0.016
B78: 3. finished, with gravel on bottom | C78: 0.015 | D78: 0.017 | E78: 0.02
B79: 4. unfinished | C79: 0.014 | D79: 0.017 | E79: 0.02
B80: 5. gunite, good section | C80: 0.016 | D80: 0.019 | E80: 0.023
B81: 6. gunite, wavy section | C81: 0.018 | D81: 0.022 | E81: 0.025
B82: 7. on good excavated rock | C82: 0.017 | D82: 0.02
B83: 8. on irregular excavated rock | C83: 0.022 | D83: 0.027
B84: d. Concrete bottom float finish with sides of:
B85: 1. dressed stone in mortar | C85: 0.015 | D85: 0.017 | E85: 0.02
B86: 2. random stone in mortar | C86: 0.017 | D86: 0.02 | E86: 0.024
B87: 3. cement rubble masonry, plastered | C87: 0.016 | D87: 0.02 | E87: 0.024
B88: 4. cement rubble masonry | C88: 0.02 | D88: 0.025 | E88: 0.03
B89: 5. dry rubble or riprap | C89: 0.02 | D89: 0.03 | E89: 0.035
B90: e. Gravel bottom with sides of:
B91: 1. formed concrete | C91: 0.017 | D91: 0.02 | E91: 0.025
B92: 2. random stone mortar | C92: 0.02 | D92: 0.023 | E92: 0.026
B93: 3. dry rubble or riprap | C93: 0.023 | D93: 0.033 | E93: 0.036
B94: f. Brick
B95: 1. glazed | C95: 0.011 | D95: 0.013 | E95: 0.015
B96: 2. in cement mortar | C96: 0.012 | D96: 0.015 | E96: 0.018
B97: g. Masonry
B98: 1. cemented rubble | C98: 0.017 | D98: 0.025 | E98: 0.03
B99: 2. dry rubble | C99: 0.023 | D99: 0.032 | E99: 0.035
B100: h. Dressed ashlar/stone paving | C100: 0.013 | D100: 0.015 | E100: 0.017
B101: i. Asphalt
B102: 1. smooth | C102: 0.013 | D102: 0.013
B103: 2. rough | C103: 0.016 | D103: 0.016
B104: j. Vegetal lining | C104: 0.03 | E104: 0.5
B107: Manning's n for Closed Conduits Flowing Partly Full (Chow, 1959).
B108: Type of Conduit and Description | C108: Minimum | D108: Normal | E108: Maximum
B109: 1. Brass, smooth: | C109: 0.009 | D109: 0.01 | E109: 0.013
B110: 2. Steel:
B111: Lockbar and welded | C111: 0.01 | D111: 0.012 | E111: 0.014
B112: Riveted and spiral | C112: 0.013 | D112: 0.016 | E112: 0.017
B113: 3. Cast Iron:
B114: Coated | C114: 0.01 | D114: 0.013 | E114: 0.014
B115: Uncoated | C115: 0.011 | D115: 0.014 | E115: 0.016
B116: 4. Wrought Iron:
B117: Black | C117: 0.012 | D117: 0.014 | E117: 0.015
B118: Galvanized | C118: 0.013 | D118: 0.016 | E118: 0.017
B119: 5. Corrugated Metal:
B120: Subdrain | C120: 0.017 | D120: 0.019 | E120: 0.021
B121: Stormdrain | C121: 0.021 | D121: 0.024 | E121: 0.03
B122: 6. Cement:
B123: Neat Surface | C123: 0.01 | D123: 0.011 | E123: 0.013
B124: Mortar | C124: 0.011 | D124: 0.013 | E124: 0.015
B125: 7. Concrete:
B126: Culvert, straight and free of debris | C126: 0.01 | D126: 0.011 | E126: 0.013
B127: Culvert with bends, connections, and some debris | C127: 0.011 | D127: 0.013 | E127: 0.014
B128: Finished | C128: 0.011 | D128: 0.012 | E128: 0.014
B129: Sewer with manholes, inlet, etc., straight | C129: 0.013 | D129: 0.015 | E129: 0.017
B130: Unfinished, steel form | C130: 0.012 | D130: 0.013 | E130: 0.014
B131: Unfinished, smooth wood form | C131: 0.012 | D131: 0.014 | E131: 0.016
B132: Unfinished, rough wood form | C132: 0.015 | D132: 0.017 | E132: 0.02
B133: 8. Wood:
B134: Stave | C134: 0.01 | D134: 0.012 | E134: 0.014
B135: Laminated, treated | C135: 0.015 | D135: 0.017 | E135: 0.02
B136: 9. Clay:
B137: Common drainage tile | C137: 0.011 | D137: 0.013 | E137: 0.017
B138: Vitrified sewer | C138: 0.011 | D138: 0.014 | E138: 0.017
B139: Vitrified sewer with manholes, inlet, etc. | C139: 0.013 | D139: 0.015 | E139: 0.017
B140: Vitrified Subdrain with open joint | C140: 0.014 | D140: 0.016 | E140: 0.018
B141: 10. Brickwork:
B142: Glazed | C142: 0.011 | D142: 0.013 | E142: 0.015
B143: Lined with cement mortar | C143: 0.012 | D143: 0.015 | E143: 0.017
B144: Sanitary sewers coated with sewage slime with bends and connections | C144: 0.012 | D144: 0.013 | E144: 0.016
B145: Paved invert, sewer, smooth bottom | C145: 0.016 | D145: 0.019 | E145: 0.02
B146: Rubble masonry, cemented | C146: 0.018 | D146: 0.025 | E146: 0.03
B149: Manning's n for Corrugated Metal Pipe (AISI, 1980).
B150: Type of Pipe, Diameter and Corrugation Dimension | C150: n
B151: 1. Annular 2.67 x 1/2 inch (all diameters) | C151: 0.024
B152: 2. Helical 1.50 x 1/4 inch
B153: 8" diameter | C153: 0.012
B154: 10" diameter | C154: 0.014
B155: 3. Helical 2.67 x 1/2 inch
B156: 12" diameter | C156: 0.011
B157: 18" diameter | C157: 0.014
B158: 24" diameter | C158: 0.016
B159: 36" diameter | C159: 0.019
B160: 48" diameter | C160: 0.02
B161: 60" diameter | C161: 0.021
B162: 4. Annular 3x1 inch (all diameters) | C162: 0.027
B163: 5. Helical 3x1 inch
B164: 48" diameter | C164: 0.023
B165: 54" diameter | C165: 0.023
B166: 60" diameter | C166: 0.024
B167: 66" diameter | C167: 0.025
B168: 72" diameter | C168: 0.026
B169: 78" diameter and larger | C169: 0.027
B170: 6. Corrugations 6x2 inches
B171: 60" diameter | C171: 0.033
B172: 72" diameter | C172: 0.032
B173: 120" diameter | C173: 0.03
B174: 180" diameter | C174: 0.028

Sheet Lists
A2: Model Review Type | B2: RAG | C2: Coastal standard | D2: Software | E2: Model Type | F2: Area Name | G2: Tab List | H2: QAR Sheet
A3: Coastal wave transformation only | B3: Red | C3: Strategic | D3: ISIS/FMP | E3: 1D only | F3: Cumbria and Lancashire | G3: Model_Approach | H3: FRA / Pre-App / ERR
A4: Coastal 1D inundation | B4: Amber | C4: Appraisal | D4: FMP/TuFlow | E4: 2D only | F4: Devon and Cornwall - East | G4: 1D_Model_Build | H4: PDU
A5: Coastal 1D-2D inundation | B5: Green | C5: Design | D5: Estry/TuFlow | E5: 1D/2D | F5: Devon and Cornwall - West | G5: 1D_Boundary_Conditions | H5: CDF / CSF / MMF / MCF
A6: Coastal 2D inundation | B6: OK | D6: TuFlow | F6: Cambridgeshire and Bedfordshire | G6: 1D_Structures | H6: Other
A7: Fluvial/tidal 1D model | B7: N/A | D7: MIKE11 | F7: Essex, Norfolk and Suffolk | G7: 1D_Run_Parameters
A8: Fluvial/tidal 1D-2D model | D8: MIKE21 HD | F8: East Midlands | G8: 2D_Model_Build
A9: Fluvial/tidal 2D model | D9: MIKE21 SW | F9: Greater Manchester Merseyside and Cheshire | G9: 2D_Boundary_Conditions | H9: A - Design
A10: Surface water model | D10: MIKEFLOOD | F10: Hertfordshire and North London | G10: 2D_Structures | H10: B - Appraisal
A11: Display all sheets | D11: SWAN | F11: Kent and South London | G11: 2D_Run_Parameters | H11: C - Strategic
D12: SWAN/EuroTop/TuFlow | F12: Lincolnshire and Northamptonshire | G12: 1D_2D_Surface_Water | H12: U - Unsatisfactory
D13: Other | F13: North East | G13: Coastal_boundary
F14: Thames | G14: Wave_Transformation
F15: West and East Sussex | G15: Wave_Overtopping
F16: Hampshire and Isle of Wight | G16: Linked_1D_2D | H16: Level 1
F17: Dorset and Wiltshire | G17: Model_Stability | H17: Level 2
F18: Somerset and West of England | G18: Model_Outputs_Calibration | H18: Level 3
F19: Shropshire Herefordshire Worcestershire and Gloucestershire | G19: Model_Sensitivity
F20: Staffordshire Warwickshire and West Midlands | G20: Audit_Trail | H20: 1 Very good
F21: North Yorkshire, East Ridings and Hull | H21: 2 Good
F22: South and West Yorkshire | H22: 3 Fair
H23: 4 Poor
H24: 5 Very poor
H25: Not Previously assessed/known
H26: Yes
H27: No

Sheet Version_control
A1: Date | B1: Version | C1: Description
A2: 2019-09-06 | B2: 4.5 | C2: Baseline version
A3: 2019-09-12 | B3: 4.6 | C3: Add coastal template to baseline. Add version control sheet and version number Add roughness example sheet Add sheet 'Lists' for maintenance Update named ranges for RAG status Add drop down box to select model type and VBA to hide/display relevant sheets Explicitly reference Model_checks in cell comments Switch off remove comments as code not yet resilient
A4: 2020-01-17 | B4: 4.7 | C4: Add the QAF Tab Add the Additional Info. Tab Change the VBA code to make them Hidden/Visible Add the counting of colours in the QAR tab
